bitfinex/quotes_BTCUSD_20241124
["timestamp","ask_amount","ask_price","bid_price","bid_amount"]
[1732490214730,0.28897427,98213.0,98212.0,0.82786104]
[1732490214966,0.35368768,98213.0,98212.0,0.82786104]
[1732490217072,0.18696,98213.0,98212.0,0.82786104]
[1732490217312,0.06471341,98213.0,98212.0,0.97786104]
[1732490217546,0.25167341,98213.0,98212.0,0.97786104]
[1732490217762,0.18696,98215.0,98212.0,0.97786104]
[1732490217978,0.18696,98215.0,98214.0,0.39621634]
[1732490218416,0.25167341,98215.0,98214.0,0.39621634]
[1732490218631,0.18696,98215.0,98214.0,0.39621634]
[1732490219065,0.25167341,98215.0,98214.0,0.39621634]
[1732490219491,0.18696,98215.0,98214.0,0.39621634]
[1732490219735,0.25167341,98215.0,98214.0,0.39621634]
[1732490221580,0.25167341,98215.0,98212.0,0.97957484]
[1732490221803,0.06471341,98213.0,98212.0,0.97957484]
[1732490222691,0.47768768,98213.0,98212.0,0.82957484]
[1732490223362,0.25167341,98190.0,98180.0,0.08336592]
[1732490223638,0.47768768,98190.0,98180.0,0.08336592]
[1732490223874,0.47968768,98190.0,98189.0,0.04241284]
[1732490224090,0.47968768,98190.0,98189.0,0.0017138]
[1732490226202,0.25167341,98190.0,98189.0,0.0017138]
[1732490226432,0.18696,98201.0,98189.0,0.02638414]
[1732490226673,0.18696,98201.0,98191.0,0.08336592]
[1732490227135,0.18696,98201.0,98191.0,0.23336592]
[1732490227610,0.06471341,98197.0,98191.0,0.23336592]
[1732490228552,0.18696,98191.0,98190.0,0.08336592]
[1732490228792,0.06471341,98197.0,98189.0,0.0017138]
[1732490228793,0.18696,98197.0,98189.0,0.0017138]
[1732490229277,0.18696,98201.0,98189.0,0.0017138]
[1732490229505,0.18696,98201.0,98191.0,0.08336592]
[1732490229719,0.18696,98201.0,98191.0,0.15]
[1732490230228,0.18696,98204.0,98191.0,0.15]
[1732490230463,0.06471341,98207.0,98192.0,0.1769017]
[1732490230697,0.06471341,98207.0,98197.0,0.08336592]
[1732490230698,0.18696,98205.0,98197.0,0.08336592]
[1732490230922,0.18696,98205.0,98192.0,0.15]
[1732490231143,0.18696,98205.0,98195.0,0.08336592]
[1732490231406,0.06471341,98207.0,98195.0,0.08336592]
[1732490232059,0.10201427,98216.0,98195.0,0.08336592]
[1732490232060,0.25167341,98205.0,98195.0,0.08336592]
[1732490232768,0.18696,98205.0,98195.0,0.08336592]
[1732490233655,0.18696,98205.0,98195.0,0.15]
[1732490233887,0.25167341,98205.0,98195.0,0.15]
[1732490235191,0.25167341,98205.0,98194.0,0.15]
[1732490235652,0.25167341,98205.0,98190.0,0.16673184]
[1732490237210,0.18696,98201.0,98190.0,0.08336592]
[1732490237640,0.06471341,98205.0,98190.0,0.08336592]
[1732490237641,0.18696,98196.0,98190.0,0.23336592]
[1732490237853,0.18696,98190.0,98189.0,0.04315589]
[1732490238281,0.28897427,98190.0,98189.0,0.04315589]
[1732490241026,0.29097427,98190.0,98189.0,0.04315589]
[1732490241238,0.35368768,98190.0,98189.0,0.04315589]
[1732490241675,0.35568768,98190.0,98189.0,0.04315589]
[1732490241885,0.35368768,98190.0,98189.0,0.04315589]
[1732490242740,0.35568768,98190.0,98189.0,0.04315589]
[1732490243420,0.35368768,98190.0,98189.0,0.04315589]
[1732490244530,0.35568768,98190.0,98189.0,0.04315589]
[1732490244782,0.35368768,98190.0,98189.0,0.04315589]
[1732490245226,0.35568768,98190.0,98189.0,0.04315589]
[1732490245444,0.70408768,98190.0,98189.0,0.0017138]
[1732490247723,0.80593068,98190.0,98189.0,0.0017138]
[1732490248164,0.70408768,98190.0,98189.0,0.0017138]
[1732490253027,0.80593068,98190.0,98189.0,0.0017138]
[1732490254230,0.70408768,98190.0,98189.0,0.0017138]
[1732490255386,0.80593068,98190.0,98189.0,0.0017138]
[1732490255611,0.70408768,98190.0,98189.0,0.0017138]
[1732490256320,0.80593068,98190.0,98189.0,0.0017138]
[1732490256543,0.70408768,98190.0,98189.0,0.0017138]
[1732490257200,0.80593068,98190.0,98189.0,0.0017138]
[1732490257421,1.00793068,98190.0,98189.0,0.0017138]
[1732490257886,0.70253741,98170.0,98169.0,0.0017144]
[1732490258107,0.70268768,98170.0,98169.0,0.0017144]
[1732490258575,1.00455168,98170.0,98169.0,0.0017144]
[1732490260145,0.90268768,98170.0,98169.0,0.0017144]
[1732490261072,1.00455168,98170.0,98169.0,0.0017144]
[1732490261326,0.90268768,98170.0,98169.0,0.0017144]
[1732490262002,1.00455168,98170.0,98169.0,0.0017144]
[1732490262903,0.90268768,98170.0,98169.0,0.0017144]
[1732490263548,1.00455168,98170.0,98169.0,0.0017144]
[1732490266931,0.90268768,98170.0,98169.0,0.0017144]
[1732490267756,0.87968768,98170.0,98169.0,0.0017144]
[1732490268303,0.67968768,98170.0,98169.0,0.0017144]
[1732490268510,0.87968768,98170.0,98169.0,0.0017144]
[1732490268934,0.90268768,98170.0,98169.0,0.0017144]
[1732490271616,1.00455168,98170.0,98169.0,0.0017144]
[1732490272278,0.90268768,98170.0,98169.0,0.0017144]
[1732490273198,1.00455168,98170.0,98169.0,0.0017144]
[1732490276093,0.90268768,98170.0,98169.0,0.0017144]
[1732490277187,1.00455168,98170.0,98169.0,0.0017144]
[1732490278972,0.18696,98128.0,98124.0,0.0483]
[1732490279202,0.18696,98125.0,98124.0,0.0483]
[1732490279476,0.28897427,98125.0,98124.0,0.0483]
[1732490281572,0.18696,98121.0,98120.0,0.04180304]
[1732490281803,0.28897427,98121.0,98120.0,0.04180304]
[1732490282548,0.35368768,98121.0,98120.0,0.04180304]
[1732490284420,0.25367341,98120.0,98101.0,0.15]
[1732490284661,0.35568768,98120.0,98091.0,0.0804138]
[1732490284906,0.57868768,98120.0,98091.0,0.0017138]
[1732490285374,0.57868768,98120.0,98105.0,0.04162198]
[1732490287566,0.57868768,98120.0,98103.0,0.04233666]
[1732490287796,0.68060368,98120.0,98103.0,0.04233666]
[1732490288027,0.57868768,98120.0,98103.0,0.04233666]
[1732490290196,0.57868768,98120.0,98091.0,0.0017138]
[1732490290681,0.57868768,98120.0,98101.0,0.04031256]
[1732490290881,0.65798768,98120.0,98101.0,0.04031256]
[1732490292399,0.65798768,98120.0,98091.0,0.0017138]
[1732490292400,0.96190368,98120.0,98091.0,0.0017138]
[1732490292615,1.00550368,98120.0,98091.0,0.0017138]
[1732490292827,0.90779041,98119.0,98091.0,0.0017138]
[1732490293035,1.00780468,98119.0,98091.0,0.0017138]
[1732490293259,1.00980468,98119.0,98091.0,0.0017138]
[1732490294593,1.05182564,98119.0,98091.0,0.0017138]
[1732490295947,1.15569369,98119.0,98091.0,0.0017138]
[1732490296417,1.03079541,98114.0,98091.0,0.0017138]
[1732490296639,0.75760641,98103.0,98091.0,0.0017138]
[1732490296864,0.98682068,98103.0,98091.0,0.0017138]
[1732490297087,1.63598873,98103.0,98091.0,0.0017138]
[1732490297301,1.78598873,98103.0,98091.0,0.0017138]
[1732490297728,0.65567341,98097.0,98091.0,0.0017138]
[1732490297959,0.75761841,98092.0,98091.0,0.0017138]
[1732490298182,0.98283268,98092.0,98091.0,0.0017138]
[1732490298401,0.88283941,98071.0,98070.0,0.0017142]
[1732490298666,0.88288768,98071.0,98070.0,0.0017142]
[1732490298881,0.98485368,98071.0,98070.0,0.0017142]
[1732490299107,0.98685368,98071.0,98070.0,0.0017142]
[1732490299319,0.75568768,98071.0,98070.0,0.0017142]
[1732490299974,0.77868768,98071.0,98070.0,0.0017142]
[1732490302011,0.35568768,98071.0,98070.0,0.0017142]
[1732490302234,0.28897427,98071.0,98070.0,0.0017142]
[1732490302685,0.35368768,98071.0,98070.0,0.0017142]
[1732490303783,0.37668768,98071.0,98070.0,0.0017142]
[1732490304238,0.57668768,98071.0,98070.0,0.0017142]
[1732490304444,0.57868768,98071.0,98070.0,0.0017142]
[1732490304659,0.57668768,98071.0,98070.0,0.0017142]
[1732490304874,0.67865368,98071.0,98070.0,0.0017142]
[1732490305145,0.77868768,98071.0,98070.0,0.0017142]
[1732490305565,0.57868768,98071.0,98070.0,0.0017142]
[1732490306220,0.37868768,98071.0,98070.0,0.0017142]
[1732490307358,0.37668768,98071.0,98070.0,0.0017142]
[1732490310605,0.37868768,98071.0,98070.0,0.0017142]
[1732490311064,0.35368768,98071.0,98070.0,0.0017142]
[1732490311939,0.35568768,98071.0,98070.0,0.0017142]
[1732490312170,0.35368768,98071.0,98070.0,0.0017142]
[1732490316983,0.35368768,98071.0,98060.0,0.00836929]
[1732490317207,0.06471341,98065.0,98060.0,0.00836929]
[1732490317435,0.10201427,98064.0,98033.0,0.28528659]
[1732490317678,0.10201427,98064.0,98055.0,0.08336592]
[1732490318456,0.28897427,98064.0,98055.0,0.08336592]
[1732490319344,0.28897427,98064.0,98034.0,0.15]
[1732490319585,0.10201427,98064.0,98054.0,0.08336592]
[1732490320066,0.18696,98069.0,98055.0,0.1293]
[1732490320296,0.06471341,98073.0,98055.0,0.1293]
[1732490320297,0.28897427,98068.0,98055.0,0.1293]
[1732490321419,0.06471341,98065.0,98055.0,0.1293]
[1732490321638,0.28897427,98068.0,98055.0,0.1293]
[1732490322543,0.10201427,98068.0,98058.0,0.08336592]
[1732490323232,0.002,98079.0,98058.0,0.08336592]
[1732490323233,0.06471341,98071.0,98058.0,0.08336592]
[1732490323451,0.06471341,98071.0,98061.0,0.08336592]
[1732490323889,0.18696,98074.0,98061.0,0.08336592]
[1732490324134,0.06471341,98071.0,98061.0,0.08336592]
[1732490324598,0.10201427,98073.0,98061.0,0.08336592]
[1732490325323,0.06471341,98081.0,98062.0,0.00101965]
[1732490325548,0.18696,98077.0,98071.0,0.08336592]
[1732490325779,0.18696,98077.0,98062.0,0.00101965]
[1732490325780,0.10201427,98076.0,98067.0,0.08336592]
[1732490327182,0.10201427,98076.0,98067.0,0.08508272]
[1732490327871,0.10201427,98076.0,98067.0,0.0017168]
[1732490328605,0.10303407,98076.0,98067.0,0.0017168]
[1732490329341,0.18696,98075.0,98067.0,0.0017168]
[1732490329594,0.18696,98068.0,98067.0,0.0017168]
[1732490329843,0.28897427,98068.0,98067.0,0.0017168]
[1732490330076,0.35368768,98068.0,98067.0,0.0017168]
[1732490330319,0.35568768,98068.0,98067.0,0.0017168]
[1732490330576,0.50688768,98068.0,98067.0,0.0017168]
[1732490330826,0.50488768,98068.0,98067.0,0.0017168]
[1732490331484,0.50688768,98068.0,98067.0,0.0017168]
[1732490331701,0.48188768,98068.0,98067.0,0.0017168]
[1732490331966,0.43278768,98068.0,98067.0,0.0017168]
[1732490334585,0.16672768,98068.0,98067.0,0.0017168]
[1732490335921,0.35670748,98068.0,98067.0,0.0017168]
[1732490336148,0.35568768,98068.0,98067.0,0.0017168]
[1732490336577,0.35568768,98068.0,98067.0,0.39756911]
[1732490337282,0.18696,98065.0,98061.0,0.04144888]
[1732490337576,0.06471341,98065.0,98061.0,0.04144888]
[1732490337815,0.06471341,98065.0,98050.0,0.08336592]
[1732490338032,0.06471341,98065.0,98051.0,0.15]
[1732490339200,0.18696,98063.0,98051.0,0.15]
[1732490339418,0.18696,98063.0,98050.0,0.12561165]
[1732490339419,0.10303407,98062.0,98050.0,0.04224573]
[1732490339889,0.10303407,98062.0,98040.0,0.12631295]
[1732490340123,0.10303407,98062.0,98041.0,0.15]
[1732490340603,0.10303407,98062.0,98050.0,0.08336592]
[1732490341821,0.10201427,98062.0,98050.0,0.08336592]
[1732490342953,0.10201427,98062.0,98041.0,0.15]
[1732490342954,0.18696,98059.0,98041.0,0.15]
[1732490343190,0.10303407,98058.0,98040.0,0.08508352]
[1732490344158,0.18696,98046.0,98040.0,0.0017176]
[1732490344413,0.18696,98041.0,98040.0,0.0017176]
[1732490344626,0.42958768,98041.0,98040.0,0.04393468]
[1732490344855,0.47778768,98041.0,98040.0,0.0017176]
[1732490345297,0.50078768,98041.0,98040.0,0.0017176]
[1732490346935,0.25167341,98020.0,98011.0,0.040736]
[1732490347153,0.50128768,98020.0,98011.0,0.040736]
[1732490347368,0.50128768,98020.0,97996.0,0.31221384]
[1732490347595,0.50128768,98020.0,97997.0,0.040744]
[1732490348063,0.50128768,98020.0,97996.0,0.01061208]
[1732490348310,0.50128768,98020.0,98000.0,0.08336592]
[1732490348746,0.50128768,98020.0,98016.0,0.04144533]
[1732490355883,0.18696,98002.0,97990.0,0.01794295]
[1732490356092,0.10303407,98001.0,97980.0,0.08336592]
[1732490356318,0.10303407,98001.0,97968.0,0.0017168]
[1732490356319,0.18696,97992.0,97986.0,0.040745]
[1732490356517,0.10303407,97991.0,97970.0,0.08336592]
[1732490356765,0.18696,97987.0,97972.0,0.040745]
[1732490356999,0.18696,97987.0,97968.0,0.0017168]
[1732490357000,0.10303407,97986.0,97970.0,0.08336592]
[1732490357197,0.18696,97985.0,97977.0,0.05547784]
[1732490357420,0.10303407,97984.0,97977.0,0.0146554]
[1732490357652,0.18696,97978.0,97977.0,0.0146554]
[1732490357854,0.28897427,97978.0,97977.0,0.0146554]
[1732490358516,0.10201427,97978.0,97977.0,0.0146554]
[1732490358727,0.18696,97984.0,97977.0,0.0146554]
[1732490358951,0.10201427,97983.0,97977.0,0.0146554]
[1732490360488,0.18696,97979.0,97977.0,0.0146554]
[1732490360703,0.10303407,97978.0,97977.0,0.0146554]
[1732490360912,0.06471341,97984.0,97977.0,0.0146554]
[1732490361120,0.10201427,97983.0,97977.0,0.0146554]
[1732490362013,0.10201427,97983.0,97977.0,0.0163738]
[1732490362656,0.1879798,97982.0,97977.0,0.0163738]
[1732490362853,0.10201427,97981.0,97977.0,0.0163738]
[1732490363092,0.10303407,97981.0,97977.0,0.0163738]
[1732490363988,0.10201427,97981.0,97977.0,0.0163738]
[1732490365310,0.10303407,97981.0,97977.0,0.0163738]
[1732490366585,0.10201427,97981.0,97977.0,0.0163738]
[1732490366793,0.06471341,97984.0,97977.0,0.0163738]
[1732490367000,0.10201427,97983.0,97977.0,0.0163738]
[1732490369682,0.18696,97980.0,97977.0,0.0163738]
[1732490369939,0.10303407,97979.0,97977.0,0.0163738]
[1732490370386,0.06471341,97984.0,97977.0,0.0163738]
[1732490370611,0.10201427,97983.0,97977.0,0.0163738]
[1732490370836,0.18696,97980.0,97977.0,0.0163738]
[1732490371067,0.10303407,97979.0,97977.0,0.0163738]
[1732490371714,0.10201427,97979.0,97977.0,0.0163738]
[1732490372150,0.10303407,97979.0,97977.0,0.0163738]
[1732490373893,0.10201427,97979.0,97977.0,0.0163738]
[1732490374814,0.10303407,97979.0,97977.0,0.0163738]
[1732490377266,0.0010198,97978.0,97977.0,0.0163738]
[1732490377481,0.10303407,97978.0,97977.0,0.0163738]
[1732490377701,0.36769407,97978.0,97977.0,0.0163738]
[1732490377941,0.43138768,97978.0,97977.0,0.0163738]
[1732490379323,0.45438768,97978.0,97977.0,0.0163738]
[1732490380882,0.45638768,97978.0,97977.0,0.0163738]
[1732490382525,0.43138768,97978.0,97977.0,0.0163738]
[1732490383964,0.24442768,97978.0,97977.0,0.0163738]
[1732490384214,0.04430141,98002.0,97977.0,0.0163738]
[1732490384461,0.2,98031.0,97977.0,0.0163738]
[1732490384462,0.23126141,98010.0,97981.0,0.23336592]
[1732490384700,0.23126141,98010.0,97980.0,0.08336592]
[1732490384701,0.10201427,98007.0,98000.0,0.08336592]
[1732490385881,0.04430141,98010.0,98000.0,0.08336592]
[1732490386369,0.10303407,98009.0,98000.0,0.08336592]
[1732490386807,0.18696,98005.0,98000.0,0.08336592]
[1732490387032,0.10201427,98004.0,98000.0,0.08336592]
[1732490387244,0.10201427,98004.0,97994.0,0.08336592]
[1732490389282,0.31206141,98010.0,97994.0,0.08336592]
[1732490389525,0.10201427,98009.0,97995.0,0.00051072]
[1732490390832,0.1032897,98009.0,97994.0,0.04102972]
[1732490391059,0.1032897,98009.0,97979.0,0.15]
[1732490391060,0.1032897,98009.0,97979.0,0.1261121]
[1732490391296,0.1032897,98009.0,97978.0,0.21011988]
[1732490391532,0.10201427,98009.0,97999.0,0.08336592]
[1732490391771,0.00127543,98008.0,97999.0,0.08336592]
[1732490392019,0.10201427,98007.0,97999.0,0.08336592]
[1732490394496,0.0779,98019.0,98000.0,0.00051072]
[1732490394716,0.2,98049.0,98000.0,0.00051072]
[1732490394717,0.0779,98030.0,98009.0,0.16673184]
[1732490394941,0.0779,98039.0,98020.0,0.08336592]
[1732490395223,0.10201427,98038.0,98030.0,0.08336592]
[1732490395671,0.0779,98047.0,98030.0,0.08336592]
[1732490395672,0.04430141,98045.0,98030.0,0.08336592]
[1732490396611,0.0779,98057.0,98035.0,0.08336592]
[1732490396852,0.18896,98069.0,98042.0,0.08336592]
[1732490397078,0.10201427,98068.0,98059.0,0.08336592]
[1732490397983,0.002,98069.0,98059.0,0.08336592]
[1732490398214,0.04643476,98076.0,98059.0,0.08336592]
[1732490398466,0.04643476,98076.0,98044.0,0.01304]
[1732490398467,0.10201427,98075.0,98066.0,0.08336592]
[1732490398688,0.04430141,98074.0,98066.0,0.08336592]
[1732490398936,0.10201427,98074.0,98066.0,0.08336592]
[1732490399823,0.04430141,98067.0,98050.0,0.08336592]
[1732490400045,0.00413335,98076.0,98050.0,0.08336592]
[1732490400046,0.18696,98060.0,98050.0,0.08336592]
[1732490400265,0.18696,98060.0,98037.0,0.15]
[1732490400266,0.10201427,98059.0,98040.0,0.08336592]
[1732490400466,0.10201427,98059.0,98027.0,0.01304]
[1732490400467,0.10201427,98059.0,98050.0,0.08336592]
[1732490400691,0.10201427,98059.0,98040.0,0.08336592]
[1732490400692,0.10328904,98059.0,98040.0,0.08336592]
[1732490400925,0.10328904,98059.0,98049.0,0.08336592]
[1732490401151,0.10201427,98059.0,98049.0,0.08336592]
[1732490401368,0.10328904,98059.0,98049.0,0.08336592]
[1732490402683,0.10328904,98059.0,98040.0,0.08336592]
[1732490402684,0.18696,98053.0,98040.0,0.08336592]
[1732490402918,0.04430141,98041.0,98024.0,0.04109531]
[1732490403144,0.04430141,98041.0,98002.0,0.0275]
[1732490403145,0.18696,98039.0,98020.0,0.08336592]
[1732490403533,0.10328932,98038.0,98020.0,0.08336592]
[1732490403997,0.10328932,98038.0,98028.0,0.08336592]
[1732490405975,0.10328932,98038.0,98029.0,0.15]
[1732490408894,0.04430141,98029.0,98028.0,0.04045068]
[1732490409092,0.27151568,98029.0,98028.0,0.04045068]
[1732490409302,0.27151568,98029.0,98000.0,0.08336592]
[1732490409508,0.18696,98022.0,98010.0,0.08336592]
[1732490409716,0.04430141,98020.0,97995.0,0.0418239]
[1732490409916,0.10328956,98019.0,98000.0,0.08336592]
[1732490410350,0.18696,98014.0,98000.0,0.08336592]
[1732490410582,0.10201427,98013.0,98000.0,0.08336592]
[1732490410803,0.10201427,98013.0,98000.0,0.04131547]
[1732490410804,0.18696,98007.0,98000.0,0.04131547]
[1732490411010,0.00127547,98006.0,98000.0,0.04131547]
[1732490411226,0.18696,98017.0,97997.0,0.08336592]
[1732490411227,0.10201427,98013.0,97997.0,0.08336592]
[1732490411442,0.04430141,98009.0,97997.0,0.08336592]
[1732490411666,0.10201427,98013.0,97997.0,0.08336592]
[1732490411878,0.04430141,98009.0,97997.0,0.08336592]
[1732490412090,0.10201427,98013.0,97997.0,0.08336592]
[1732490412323,0.04430141,98008.0,97997.0,0.08336592]
[1732490412726,0.04430141,98008.0,97998.0,0.15]
[1732490413153,0.04430141,98008.0,97980.0,0.08336592]
[1732490413154,0.10201427,98007.0,97980.0,0.08336592]
[1732490413401,0.10328965,98007.0,97990.0,0.08336592]
[1732490413626,0.10328965,98007.0,97997.0,0.08336592]
[1732490414080,0.04430141,98008.0,97997.0,0.08336592]
[1732490415043,0.04430141,98015.0,97997.0,0.08336592]
[1732490415271,0.10201427,98014.0,98005.0,0.08336592]
[1732490416240,0.04430141,98009.0,98005.0,0.08336592]
[1732490416684,0.04430141,98009.0,98005.0,0.12405363]
[1732490417135,0.10328964,98008.0,98005.0,0.04068771]
[1732490417357,0.10328964,98008.0,97980.0,0.08336592]
[1732490417358,0.18696,98001.0,97980.0,0.08336592]
[1732490417649,0.18696,97999.0,97981.0,0.04031974]
[1732490417866,0.10328984,98000.0,97990.0,0.08336592]
[1732490417867,0.10328984,97998.0,97990.0,0.08336592]
[1732490418101,0.10201427,97998.0,97990.0,0.08336592]
[1732490418365,0.04430141,98004.0,97990.0,0.08336592]
[1732490418593,0.10201427,98003.0,97991.0,0.00051083]
[1732490419459,0.04430141,98004.0,97990.0,0.08336592]
[1732490420327,0.04430141,98004.0,97990.0,0.12453319]
[1732490420548,0.04430141,98004.0,97991.0,0.15]
[1732490421069,0.10201427,98003.0,97991.0,0.15]
[1732490421291,0.00127549,98002.0,97991.0,0.15]
[1732490421508,0.10328976,98003.0,97991.0,0.15]
[1732490422168,0.10328976,98003.0,97990.0,0.04116727]
[1732490422690,0.10328976,98003.0,97981.0,0.0017186]
[1732490422909,0.18696,97999.0,97981.0,0.19212512]
[1732490423134,0.10328984,97998.0,97981.0,0.19212512]
[1732490423796,0.10201427,97998.0,97981.0,0.19212512]
[1732490424019,0.10201427,97998.0,97988.0,0.08336592]
[1732490424690,0.10328984,97998.0,97988.0,0.08336592]
[1732490425395,0.10328984,97998.0,97981.0,0.19212512]
[1732490425396,0.18696,97997.0,97981.0,0.19212512]
[1732490425619,0.10201427,97996.0,97981.0,0.19212512]
[1732490425840,0.0500756,97995.0,97981.0,0.19212512]
[1732490426058,0.10201427,97994.0,97981.0,0.19212512]
[1732490428727,0.18696,97992.0,97981.0,0.19212512]
[1732490428954,0.10328993,97991.0,97981.0,0.19212512]
[1732490429389,0.10328993,97991.0,97981.0,0.04212512]
[1732490429390,0.18696,97986.0,97981.0,0.04212512]
[1732490429593,0.10329001,97985.0,97981.0,0.04212512]
[1732490430101,0.18696,97982.0,97981.0,0.04212512]
[1732490430341,0.48565166,97982.0,97981.0,0.0017186]
[1732490430544,0.48437568,97982.0,97981.0,0.0017186]
[1732490430995,0.48637568,97982.0,97981.0,0.0017186]
[1732490431455,0.48437568,97982.0,97981.0,0.0017186]
[1732490431666,0.46137568,97982.0,97981.0,0.0017186]
[1732490431889,0.46337568,97982.0,97981.0,0.0017186]
[1732490432316,0.46137568,97982.0,97981.0,0.0017186]
[1732490432562,0.46337568,97982.0,97981.0,0.0017186]
[1732490433443,0.48637568,97982.0,97981.0,0.0017186]
[1732490434322,0.58843468,97982.0,97981.0,0.0017186]
[1732490434531,0.58843468,97982.0,97977.0,0.0163738]
[1732490434532,0.38736141,97978.0,97977.0,0.0163738]
[1732490434736,0.48937568,97978.0,97977.0,0.0163738]
[1732490436979,0.68623041,97972.0,97971.0,0.0017166]
[1732490437197,0.68823441,97969.0,97941.0,0.0017176]
[1732490437421,0.68617568,97969.0,97949.0,0.04206485]
[1732490437628,0.18696,97938.0,97930.0,0.08336592]
[1732490437837,0.10201427,97937.0,97930.0,0.08336592]
[1732490438020,0.10329063,97937.0,97930.0,0.08336592]
[1732490438711,0.29462751,97949.0,97930.0,0.08336592]
[1732490438945,0.10201427,97948.0,97939.0,0.08336592]
[1732490439161,0.0453,97963.0,97939.0,0.08336592]
[1732490439162,0.18696,97961.0,97939.0,0.08336592]
[1732490439362,0.10201427,97960.0,97951.0,0.08336592]
[1732490439569,0.16642751,97956.0,97951.0,0.08336592]
[1732490439987,0.18696,97952.0,97940.0,0.08336592]
[1732490440238,0.10329045,97951.0,97930.0,0.08336592]
[1732490440434,0.18696,97947.0,97935.0,0.04181252]
[1732490440637,0.18896,97938.0,97920.0,0.08336592]
[1732490440868,0.10329063,97937.0,97930.0,0.04034403]
[1732490441077,0.10329063,97937.0,97927.0,0.08336592]
[1732490441284,0.10201427,97937.0,97927.0,0.08336592]
[1732490441494,0.10329063,97937.0,97927.0,0.08336592]
[1732490442340,0.10329063,97937.0,97920.0,0.08336592]
[1732490442560,0.00127636,97936.0,97921.0,0.15]
[1732490442764,0.10201427,97935.0,97921.0,0.15]
[1732490445202,0.10201427,97935.0,97921.0,0.145]
[1732490446960,0.10201427,97935.0,97921.0,0.1458577]
[1732490450826,0.0806,97928.0,97921.0,0.0008577]
[1732490451036,0.2,97929.0,97921.0,0.0008577]
[1732490451037,0.10201427,97935.0,97921.0,0.1508577]
[1732490452148,0.00127638,97936.0,97921.0,0.1508577]
[1732490452367,0.00127638,97936.0,97922.0,0.00051259]
[1732490452368,0.10201427,97936.0,97922.0,0.00051259]
[1732490453510,0.10201427,97936.0,97920.0,0.03694447]
[1732490453764,0.2,97943.0,97926.0,0.12582226]
[1732490453976,0.2,97974.0,97920.0,0.04057541]
[1732490453977,0.2,97959.0,97933.0,0.12582226]
[1732490454185,0.0477,97960.0,97950.0,0.12582226]
[1732490454608,0.2,97957.0,97950.0,0.12582226]
[1732490454819,0.2,97956.0,97950.0,0.12582226]
[1732490455236,0.0477,97960.0,97950.0,0.12582226]
[1732490456130,0.002,97972.0,97950.0,0.12582226]
[1732490456131,0.2,97970.0,97950.0,0.12582226]
[1732490456346,0.30201427,97969.0,97950.0,0.12582226]
[1732490456593,0.2,97968.0,97950.0,0.12582226]
[1732490456831,0.2,97970.0,97950.0,0.12582226]
[1732490457039,0.10201427,97969.0,97950.0,0.16700179]
[1732490457929,0.10201427,97969.0,97950.0,0.12582226]
[1732490459255,0.30201427,97969.0,97950.0,0.12582226]
[1732490460235,0.2,97961.0,97950.0,0.12582226]
[1732490460686,0.30201427,97969.0,97950.0,0.12582226]
[1732490460940,0.30201427,97969.0,97950.0,0.16700781]
[1732490461594,0.2,97965.0,97950.0,0.16700781]
[1732490462278,0.2,97965.0,97950.0,0.04118555]
[1732490462279,0.10329022,97964.0,97950.0,0.04118555]
[1732490462490,0.10329022,97964.0,97950.0,0.12502665]
[1732490462704,0.10329022,97964.0,97950.0,0.0838411]
[1732490463141,0.2,97956.0,97930.0,0.0838411]
[1732490463360,0.3215,97942.0,97941.0,0.04191355]
[1732490463540,0.42351427,97942.0,97920.0,0.0838411]
[1732490463796,0.10329064,97941.0,97921.0,0.04309438]
[1732490464258,0.10329064,97941.0,97921.0,0.0008582]
[1732490465202,0.2,97939.0,97930.0,0.0838411]
[1732490465442,0.10201427,97938.0,97930.0,0.0838411]
[1732490466061,0.1215,97942.0,97930.0,0.0838411]
[1732490466275,0.10201427,97941.0,97930.0,0.0838411]
[1732490467138,0.10201427,97941.0,97920.0,0.12553956]
[1732490467583,0.10201427,97941.0,97920.0,0.0838411]
[1732490468218,0.0012763,97940.0,97920.0,0.0838411]
[1732490468430,0.30201427,97939.0,97920.0,0.0838411]
[1732490468661,0.00127636,97938.0,97910.0,0.0838411]
[1732490468869,0.10201427,97937.0,97920.0,0.0838411]
[1732490469092,0.00127636,97936.0,97920.0,0.0838411]
[1732490470369,0.00127636,97936.0,97910.0,0.0838411]
[1732490470586,0.00127636,97936.0,97920.0,0.0838411]
[1732490470813,0.00127636,97936.0,97910.0,0.0846992]
[1732490471034,0.00127636,97936.0,97920.0,0.0838411]
[1732490471286,0.00127636,97936.0,97910.0,0.0846992]
[1732490471728,0.002,97935.0,97911.0,0.15]
[1732490472621,0.00327636,97936.0,97911.0,0.15]
[1732490473481,0.002,97935.0,97911.0,0.15]
[1732490474825,0.10201427,97937.0,97920.0,0.0838411]
[1732490476794,0.10201427,97937.0,97924.0,0.40076777]
[1732490477212,0.10201427,97937.0,97925.0,0.15]
[1732490477631,0.10201427,97937.0,97926.0,0.15]
[1732490478494,0.10201427,97937.0,97926.0,0.55076777]
[1732490479364,0.10201427,97937.0,97926.0,0.40095021]
[1732490479579,0.10201427,97937.0,97929.0,0.15]
[1732490480434,0.10201427,97937.0,97929.0,0.55095021]
[1732490480851,0.10201427,97937.0,97929.0,0.15]
[1732490481499,0.10201427,97937.0,97929.0,0.40111596]
[1732490481738,0.10201427,97937.0,97930.0,0.15]
[1732490483514,0.10373067,97937.0,97930.0,0.15]
[1732490484399,0.10373067,97937.0,97930.0,0.55111596]
[1732490484811,0.002,97934.0,97930.0,0.55111596]
[1732490485277,0.002,97935.0,97930.0,0.55111596]
[1732490485723,0.002,97935.0,97930.0,0.4011181]
[1732490486153,0.002,97935.0,97931.0,0.15]
[1732490487254,0.002,97934.0,97931.0,0.15]
[1732490488262,0.10500703,97937.0,97931.0,0.15]
[1732490488606,0.10373067,97937.0,97930.0,0.55098392]
[1732490490274,0.00127636,97936.0,97930.0,0.55098392]
[1732490490510,0.10329063,97936.0,97930.0,0.55098392]
[1732490490718,0.10329063,97936.0,97930.0,0.55076206]
[1732490490961,0.4483,97931.0,97930.0,0.40076206]
[1732490491149,0.425,97927.0,97926.0,0.04097793]
[1732490491353,0.65521427,97927.0,97926.0,0.04097793]
[1732490491535,0.5532,97921.0,97920.0,0.0008582]
[1732490491737,0.65321427,97921.0,97920.0,0.0428133]
[1732490491936,0.63021427,97921.0,97920.0,0.0008582]
[1732490492781,0.63221427,97921.0,97920.0,0.0008582]
[1732490493002,0.65521427,97921.0,97920.0,0.0008582]
[1732490493851,0.65521427,97921.0,97912.0,0.0420751]
[1732490494062,0.65281427,97913.0,97912.0,0.0420751]
[1732490494678,0.65081427,97913.0,97912.0,0.0420751]
[1732490494925,0.65081427,97913.0,97910.0,0.0008581]
[1732490494926,0.3532,97911.0,97910.0,0.0008581]
[1732490495151,0.45521427,97911.0,97910.0,0.0008581]
[1732490495595,0.65521427,97911.0,97910.0,0.0008581]